fUSD/lending_fUSD_20251212
["ID","MTS","AMOUNT","RATE_DAILY","PERIOD"]
[398371341,1765559246298,-500.0,0.0003863,30]
[398371343,1765559246353,-500.0,0.0003863,30]
[398371345,1765559246407,-500.0,0.0003863,30]
[398371347,1765559246457,-500.0,0.0003863,30]
[398371349,1765559246507,-500.0,0.0003863,30]
[398371351,1765559246558,-500.0,0.0003863,30]
[398371354,1765559246619,-500.0,0.0003863,30]
[398371356,1765559246669,-500.0,0.0003863,30]
[398371358,1765559246718,-500.0,0.0003863,30]
[398371361,1765559246768,-335.93211444,0.0003863,30]
[398371363,1765559246816,-500.0,0.0003863,30]
[398371365,1765559246865,-500.0,0.0003863,30]
[398371367,1765559246913,-500.0,0.0003863,30]
[398371370,1765559246964,-3626.89,0.0003863,30]
[398371372,1765559247015,-500.0,0.0003863,30]
[398371374,1765559247066,-784.06,0.0003863,30]
[398371376,1765559247125,-500.0,0.0003863,30]
[398371379,1765559247181,-500.0,0.0003863,30]
[398371381,1765559247230,-500.0,0.0003863,30]
[398371383,1765559247297,-500.0,0.0003863,30]
[398371386,1765559247361,-500.0,0.0003863,30]
[398371388,1765559247423,-500.0,0.0003863,30]
[398371390,1765559247477,-500.0,0.0003863,30]
[398371392,1765559247534,-500.0,0.0003863,30]
[398371394,1765559247590,-601.74,0.0003863,30]
[398371396,1765559247646,-500.0,0.0003863,30]
[398371399,1765559247702,-500.0,0.0003863,30]
[398371401,1765559247754,-526.61,0.0003863,30]
[398371403,1765559247804,-500.0,0.0003863,30]
[398371405,1765559247855,-500.0,0.0003863,30]
[398371407,1765559247912,-500.0,0.0003863,30]
[398371410,1765559247966,-500.0,0.0003863,30]
[398371412,1765559248022,-500.0,0.0003863,30]
[398371414,1765559248077,-500.0,0.0003863,30]
[398371416,1765559248132,-778.17,0.0003863,30]
[398371419,1765559248191,-500.0,0.0003863,30]
[398371421,1765559248242,-500.0,0.0003863,30]
[398371423,1765559248292,-500.0,0.0003863,30]
[398371425,1765559248343,-500.0,0.0003863,30]
[398371428,1765559248398,-500.0,0.0003863,30]
[398371430,1765559248452,-500.0,0.0003863,30]
[398371432,1765559248502,-643.31,0.0003863,30]
[398371434,1765559248554,-500.0,0.0003863,30]
[398371436,1765559248610,-500.0,0.0003863,30]
[398371439,1765559248671,-500.0,0.0003863,30]
[398371441,1765559248724,-1076.99,0.0003863,30]
[398371443,1765559248771,-500.0,0.0003863,30]
[398371445,1765559248818,-500.0,0.0003863,30]
[398371447,1765559248873,-500.0,0.0003863,30]
[398371450,1765559248924,-553.84,0.0003863,30]
[398371452,1765559248972,-500.0,0.0003863,30]
[398371454,1765559249022,-500.0,0.0003863,30]
[398371456,1765559249073,-500.0,0.0003863,30]
[398371458,1765559249123,-500.0,0.0003863,30]
[398371461,1765559249175,-513.44,0.0003863,30]
[398371463,1765559249225,-500.0,0.0003863,30]
[398371465,1765559249273,-500.0,0.0003863,30]
[398371467,1765559249325,-500.0,0.0003863,30]
[398371469,1765559249378,-500.0,0.0003863,30]
[398371471,1765559249433,-500.0,0.0003863,30]
[398371474,1765559249491,-835.61,0.0003863,30]
[398371476,1765559249541,-500.0,0.0003863,30]
[398371478,1765559249591,-1000.0,0.0003863,120]
[398371480,1765559249642,-500.0,0.0003863,30]
[398371483,1765559249693,-3639.86,0.0003863,30]
[398371493,1765559250082,-500.0,0.0003863,30]
[398371496,1765559250145,-500.0,0.0003863,30]
[398371498,1765559250201,-1233.43,0.0003863,30]
[398371500,1765559250254,-511.43948261,0.0003863,30]
[398371502,1765559250307,-775.18,0.0003863,30]
[398371505,1765559250359,-500.0,0.0003863,30]
[398371507,1765559250414,-500.0,0.0003863,30]
[398371509,1765559250466,-500.0,0.0003863,30]
[398371510,1765559250520,-1307.39,0.0003863,30]
[398371511,1765559250575,-1393.87,0.0003863,30]
[398371513,1765559250625,-737.19,0.0003863,30]
[398371515,1765559250671,-500.0,0.0003863,30]
[398371517,1765559250718,-500.0,0.0003863,30]
[398371520,1765559250774,-500.0,0.0003863,30]
[398371522,1765559250825,-459.80320054,0.0003863,30]
[398371524,1765559250877,-500.0,0.0003863,30]
[398371526,1765559250932,-574.81265368,0.0003863,30]
[398371529,1765559250985,-500.0,0.0003863,30]
[398371531,1765559251038,-500.0,0.0003863,30]
[398371533,1765559251090,-500.0,0.0003863,30]
[398371535,1765559251142,-500.0,0.0003863,30]
[398371537,1765559251197,-1276.27,0.0003863,30]
[398371540,1765559251259,-500.0,0.0003863,30]
[398371542,1765559251320,-500.0,0.0003863,30]
[398371545,1765559251382,-500.0,0.0003863,30]
[398371547,1765559251438,-500.0,0.0003863,30]
[398371549,1765559251490,-536.91,0.0003863,30]
[398371551,1765559251543,-500.0,0.0003863,30]
[398371553,1765559251596,-500.0,0.0003863,30]
[398371555,1765559251650,-1276.44,0.0003863,30]
[398371557,1765559251704,-500.0,0.0003863,30]
[398371560,1765559251756,-563.19,0.0003863,30]
[398371562,1765559251806,-500.0,0.0003863,30]
[398371564,1765559251856,-500.0,0.0003863,30]
[398371566,1765559251911,-691.33,0.0003863,30]
[398371568,1765559251969,-500.0,0.0003863,30]
[398371570,1765559252026,-500.0,0.0003863,30]
[398371573,1765559252079,-500.0,0.0003863,30]
[398371575,1765559252138,-500.0,0.0003863,30]
[398371577,1765559252197,-500.0,0.0003863,30]
[398371580,1765559252261,-500.0,0.0003863,30]
[398371582,1765559252332,-500.0,0.0003863,30]
[398371584,1765559252402,-500.0,0.0003863,30]
[398371586,1765559252459,-500.0,0.0003863,30]
[398371588,1765559252516,-500.0,0.0003863,30]
[398371590,1765559252578,-182.43777672,0.0003863,30]
[398371592,1765559252640,-619.73,0.0003863,30]
[398371594,1765559252699,-500.0,0.0003863,30]
[398371596,1765559252762,-500.0,0.0003863,30]
[398371599,1765559252824,-500.0,0.0003863,30]
[398371601,1765559252881,-500.0,0.0003863,30]
[398371603,1765559252938,-857.44,0.0003863,30]
[398371605,1765559252999,-500.0,0.0003863,30]
[398371607,1765559253068,-573.64,0.0003863,30]
[398371610,1765559253134,-500.0,0.0003863,30]
[398371612,1765559253194,-572.6,0.0003863,30]
[398371614,1765559253254,-500.0,0.0003863,30]
[398371616,1765559253314,-227.63531996,0.0003863,30]
[398371618,1765559253382,-561.54,0.0003863,30]
[398371620,1765559253442,-580.19,0.0003863,30]
[398371623,1765559253498,-1340.57,0.0003863,30]
[398371625,1765559253551,-500.0,0.0003863,30]
[398371627,1765559253603,-477.73785484,0.0003863,30]
[398371629,1765559253654,-500.0,0.0003863,30]
[398371631,1765559253703,-500.0,0.0003863,30]
[398371633,1765559253750,-615.99,0.0003863,30]
[398371636,1765559253800,-500.0,0.0003863,30]
[398371638,1765559253856,-500.0,0.0003863,30]
[398371640,1765559253914,-409.05524615,0.0003863,30]
[398371643,1765559253969,-500.0,0.0003863,30]
[398371645,1765559254018,-1177.76,0.0003863,30]
[398371647,1765559254072,-500.0,0.0003863,30]
[398371649,1765559254123,-561.01070264,0.0003863,30]
[398371651,1765559254176,-500.0,0.0003863,30]
[398371654,1765559254232,-500.0,0.0003863,30]
[398371656,1765559254283,-500.0,0.0003863,30]
[398371658,1765559254338,-1878.3,0.0003863,30]
[398371660,1765559254395,-1765.81,0.0003863,30]
[398371662,1765559254451,-500.0,0.0003863,30]
[398371664,1765559254504,-1180.63,0.0003863,30]
[398371667,1765559254558,-850.22,0.0003863,30]
[398371668,1765559254614,-500.0,0.0003863,30]
[398371669,1765559254677,-500.0,0.0003863,30]
[398371670,1765559254736,-500.0,0.0003863,30]
[398371672,1765559254807,-500.0,0.0003863,30]
[398371674,1765559254859,-500.0,0.0003863,30]
[398371676,1765559254912,-500.0,0.0003863,30]
[398371678,1765559254962,-500.0,0.0003863,30]
[398371680,1765559255012,-500.0,0.0003863,30]
[398371683,1765559255063,-500.0,0.0003863,30]
[398371685,1765559255112,-500.0,0.0003863,30]
[398371687,1765559255162,-934.3,0.0003863,30]
[398371689,1765559255213,-1531.1,0.0003863,30]
[398371691,1765559255266,-500.0,0.0003863,30]
[398371694,1765559255318,-500.0,0.0003863,30]
[398371702,1765559255663,-500.0,0.0003863,30]
[398371704,1765559255712,-500.0,0.0003863,30]
[398371706,1765559255760,-257.51195656,0.0003863,30]
[398371708,1765559255811,-506.85788425,0.0003863,30]
[398371710,1765559255860,-500.0,0.0003863,30]
[398371712,1765559255918,-500.0,0.0003863,30]
[398371715,1765559255973,-534.91,0.0003863,30]
[398371717,1765559256024,-500.0,0.0003863,30]
[398371719,1765559256075,-500.0,0.0003863,30]
[398371721,1765559256128,-504.95779006,0.0003863,30]
[398371723,1765559256182,-500.0,0.0003863,30]
[398371725,1765559256237,-629.98,0.0003863,30]
[398371727,1765559256291,-500.0,0.0003863,30]
[398371729,1765559256348,-500.0,0.0003863,30]
[398371731,1765559256401,-502.55761936,0.0003863,30]
[398371733,1765559256454,-500.0,0.0003863,30]
[398371735,1765559256506,-892.13,0.0003863,30]
[398371737,1765559256557,-501.20835512,0.0003863,30]
[398371740,1765559256609,-790.85,0.0003863,30]
[398371742,1765559256660,-1000.0,0.0003863,30]
[398371744,1765559256710,-819.85,0.0003863,30]
[398371746,1765559256760,-500.0,0.0003863,30]
[398371748,1765559256811,-500.0,0.0003863,30]
[398371750,1765559256863,-500.0,0.0003863,30]
[398371753,1765559256916,-589.28,0.0003863,30]
[398371755,1765559256967,-412.24380196,0.0003863,30]
[398371757,1765559257017,-500.0,0.0003863,30]
[398371759,1765559257067,-967.53,0.0003863,30]
[398371761,1765559257120,-500.0,0.0003863,30]
[398371764,1765559257173,-500.0,0.0003863,30]
[398371766,1765559257226,-502.13732799,0.0003863,30]
[398371768,1765559257276,-957.71,0.0003863,30]
[398371770,1765559257329,-500.0,0.0003863,30]
[398371772,1765559257387,-500.0,0.0003863,30]
[398371774,1765559257450,-3219.23,0.0003863,30]
[398371777,1765559257508,-500.0,0.0003863,30]
[398371779,1765559257561,-500.0,0.0003863,30]
[398371781,1765559257619,-4924.5,0.0003863,30]
[398371783,1765559257675,-511.5,0.0003863,30]
[398371785,1765559257731,-716.43,0.0003863,30]
[398371788,1765559257783,-500.0,0.0003863,30]
[398371789,1765559257835,-1215.39,0.0003863,30]
[398371791,1765559257891,-504.49,0.0003863,30]
[398371794,1765559257948,-500.0,0.0003863,30]
[398371796,1765559258002,-500.0,0.0003863,30]
[398371798,1765559258057,-500.0,0.0003863,30]
[398371800,1765559258111,-205.63681506,0.0003863,30]
[398371802,1765559258169,-500.0,0.0003863,30]
[398371804,1765559258227,-665.47,0.0003863,30]
[398371807,1765559258285,-500.0,0.0003863,30]
[398371809,1765559258340,-500.0,0.0003863,30]
[398371811,1765559258396,-500.0,0.0003863,30]
[398371813,1765559258455,-500.0,0.0003863,30]
[398371815,1765559258507,-500.0,0.0003863,30]
[398371817,1765559258561,-500.0,0.0003863,30]
[398371820,1765559258624,-526.55,0.0003863,30]
[398371822,1765559258683,-500.0,0.0003863,30]
[398371824,1765559258740,-853.33,0.0003863,30]
[398371826,1765559258792,-500.0,0.0003863,30]
[398371828,1765559258847,-501.7610168,0.0003863,30]
[398371830,1765559258907,-592.65,0.0003863,30]
[398371833,1765559258963,-500.0,0.0003863,30]
[398371835,1765559259023,-500.0,0.0003863,30]
[398371837,1765559259082,-1000.0,0.0003863,30]
[398371839,1765559259139,-500.0,0.0003863,30]
[398371841,1765559259195,-500.0,0.0003863,30]
[398371843,1765559259251,-500.0,0.0003863,30]
[398371846,1765559259304,-500.0,0.0003863,30]
[398371848,1765559259360,-1447.73,0.0003863,30]
[398371850,1765559259413,-502.04542457,0.0003863,30]
[398371852,1765559259464,-500.0,0.0003863,30]
[398371854,1765559259512,-500.0,0.0003863,30]
[398371856,1765559259562,-708.43,0.0003863,30]
[398371859,1765559259614,-500.0,0.0003863,30]
[398371861,1765559259665,-500.0,0.0003863,30]
[398371863,1765559259714,-500.0,0.0003863,30]
[398371865,1765559259768,-501.48279806,0.0003863,30]
[398371868,1765559259815,-500.0,0.0003863,30]
[398371870,1765559259863,-500.0,0.0003863,30]
[398371872,1765559259913,-500.0,0.0003863,30]
[398371874,1765559259963,-2113.68,0.0003863,30]
[398371876,1765559260012,-971.96,0.0003863,30]
[398371879,1765559260063,-500.0,0.0003863,30]
[398371881,1765559260116,-500.0,0.0003863,30]
[398371883,1765559260168,-500.0,0.0003863,30]
[398371885,1765559260224,-500.0,0.0003863,30]
[398371887,1765559260280,-500.0,0.0003863,30]
[398371889,1765559260337,-971.45,0.0003863,30]
[398371891,1765559260393,-771.89,0.0003863,30]
[398371894,1765559260454,-500.0,0.0003863,30]
[398371896,1765559260505,-500.0,0.0003863,30]
[398371898,1765559260556,-500.0,0.0003863,30]
[398371900,1765559260609,-889.28,0.0003863,30]
[398371903,1765559260672,-1055.35,0.0003863,30]
[398371905,1765559260721,-500.0,0.0003863,30]
[398371916,1765559261148,-768.16,0.0003863,30]
[398371918,1765559261198,-796.43,0.0003863,30]
[398371920,1765559261247,-500.0,0.0003863,30]
[398371922,1765559261296,-500.0,0.0003863,30]
[398371924,1765559261345,-500.0,0.0003863,30]
[398371927,1765559261396,-500.0,0.0003863,30]
[398371929,1765559261447,-500.0,0.0003863,30]
[398371931,1765559261495,-500.0,0.0003863,30]
[398371933,1765559261544,-4057.42,0.0003863,30]
[398371935,1765559261594,-500.0,0.0003863,30]
[398371938,1765559261646,-519.19,0.0003863,30]
[398371940,1765559261692,-614.09,0.0003863,30]
[398371942,1765559261738,-500.0,0.0003863,30]
[398371944,1765559261784,-500.0,0.0003863,30]
[398371946,1765559261835,-500.0,0.0003863,30]
[398371948,1765559261883,-500.0,0.0003863,30]
[398371951,1765559261932,-500.0,0.0003863,30]
[398371953,1765559261980,-500.0,0.0003863,30]
[398371955,1765559262032,-500.0,0.0003863,30]
[398371957,1765559262082,-500.0,0.0003863,30]
[398371959,1765559262139,-500.0,0.0003863,30]
[398371960,1765559262199,-1274.5,0.0003863,30]
[398371962,1765559262255,-667.67,0.0003863,30]
[398371964,1765559262304,-500.0,0.0003863,30]
[398371966,1765559262355,-500.0,0.0003863,30]
[398371968,1765559262405,-500.0,0.0003863,30]
[398371970,1765559262456,-500.0,0.0003863,30]
[398371972,1765559262506,-1168.93,0.0003863,30]
[398371974,1765559262559,-500.0,0.0003863,30]
[398371977,1765559262613,-500.0,0.0003863,30]
[398371979,1765559262666,-500.0,0.0003863,30]
[398371981,1765559262714,-500.0,0.0003863,30]
[398371983,1765559262765,-500.0,0.0003863,30]
[398371985,1765559262817,-500.0,0.0003863,30]
[398371987,1765559262870,-535.37,0.0003863,30]
[398371990,1765559262926,-500.0,0.0003863,30]
[398371992,1765559262977,-500.0,0.0003863,30]
[398371994,1765559263029,-500.0,0.0003863,30]
[398371996,1765559263080,-500.0,0.0003863,30]
[398371998,1765559263131,-1327.99,0.0003863,30]
[398372000,1765559263181,-500.0,0.0003863,30]
[398372002,1765559263231,-500.0,0.0003863,30]
[398372004,1765559263281,-500.0,0.0003863,30]
[398372006,1765559263333,-500.0,0.0003863,30]
[398372009,1765559263390,-500.0,0.0003863,30]
[398372011,1765559263442,-500.0,0.0003863,30]
[398372013,1765559263493,-500.0,0.0003863,30]
[398372015,1765559263547,-500.0,0.0003863,30]
[398372017,1765559263599,-1465.36,0.0003863,30]
[398372020,1765559263651,-502.13085647,0.0003863,30]
[398372022,1765559263703,-599.01,0.0003863,30]
[398372024,1765559263751,-500.0,0.0003863,30]
[398372026,1765559263802,-500.0,0.0003863,30]
[398372028,1765559263851,-500.0,0.0003863,30]
[398372030,1765559263901,-2472.22,0.0003863,30]
[398372032,1765559263953,-500.0,0.0003863,30]
[398372034,1765559264001,-500.0,0.0003863,30]
[398372036,1765559264052,-500.0,0.0003863,30]
[398372039,1765559264107,-500.0,0.0003863,30]
[398372041,1765559264163,-500.0,0.0003863,30]
[398372043,1765559264223,-500.0,0.0003863,30]
[398372045,1765559264279,-500.0,0.0003863,30]
[398372047,1765559264340,-500.0,0.0003863,30]
[398372050,1765559264396,-518.51,0.0003863,30]
[398372052,1765559264449,-500.0,0.0003863,30]
[398372054,1765559264500,-1876.56,0.0003863,30]
[398372056,1765559264553,-985.25,0.0003863,30]
[398372058,1765559264605,-500.0,0.0003863,30]
[398372061,1765559264660,-500.0,0.0003863,30]
[398372063,1765559264711,-4930.29589445,0.0003863,50]
[398372065,1765559264760,-921.83076554,0.0003863,50]
[398372067,1765559264813,-150.0,0.00038767,60]
[398372069,1765559264865,-570.75,0.00038863,30]
[398372071,1765559264921,-570.75,0.00038863,30]
[398372074,1765559264984,-4039.0653,0.00038888,30]
[398372076,1765559265042,-150.0,0.00038904,60]
[398372078,1765559265101,-500.0,0.00038904,120]
[398372080,1765559265161,-500.0,0.00038904,30]
[398372083,1765559265222,-500.0,0.00038904,30]
[398372085,1765559265275,-168.15043,0.00038904,30]
[398372087,1765559265329,-621.981678,0.00038904,30]
[398372089,1765559265385,-1302.622781,0.00038904,30]
[398372091,1765559265441,-1178.321875,0.00038904,30]
[398372093,1765559265496,-218.449425,0.00038904,30]
[398372095,1765559265553,-655.348273,0.00038904,30]
[398372097,1765559265613,-221.2344483,0.00038904,30]
[398372100,1765559265671,-500.0,0.00038904,30]
[398372102,1765559265729,-500.0,0.00038904,30]
[398372104,1765559265784,-504.8203788,0.00038904,30]
[398372106,1765559265840,-500.0,0.00038904,30]
[398372108,1765559265894,-500.0,0.00038904,30]
[398372110,1765559265951,-500.0,0.00038904,30]
[398372112,1765559266008,-500.0,0.00038904,30]
[398372114,1765559266064,-500.0,0.00038904,30]
[398372117,1765559266357,-500.0,0.00038904,30]
[398372120,1765559266418,-500.0,0.00038904,30]
[398372122,1765559266472,-644.97,0.00038904,30]
[398372124,1765559266525,-500.0,0.00038904,30]
[398372126,1765559266577,-553.81,0.00038904,30]
[398372128,1765559266632,-500.0,0.00038904,30]
[398372130,1765559266690,-500.0,0.00038904,30]
[398372133,1765559266747,-507.31,0.00038904,30]
[398372135,1765559266799,-500.0,0.00038904,30]
[398372137,1765559266852,-500.0,0.00038904,30]
[398372139,1765559266906,-500.0,0.00038904,30]
[398372141,1765559266962,-500.0,0.00038904,30]
[398372144,1765559267018,-500.0,0.00038904,30]
[398372146,1765559267072,-500.0,0.00038904,30]
[398372148,1765559267126,-500.0,0.00038904,30]
[398372150,1765559267179,-500.0,0.00038904,30]
[398372152,1765559267230,-500.0,0.00038904,30]
[398372154,1765559267281,-573.01,0.00038904,30]
[398372157,1765559267337,-500.0,0.00038904,30]
[398372159,1765559267392,-500.0,0.00038904,30]
[398372161,1765559267445,-500.0,0.00038904,30]
[398372163,1765559267497,-500.0,0.00038904,30]
[398372165,1765559267549,-500.0,0.00038904,30]
[398372167,1765559267602,-500.0,0.00038904,30]
[398372169,1765559267657,-500.0,0.00038904,30]
[398372172,1765559267715,-500.0,0.00038904,30]
[398372174,1765559267767,-568.24,0.00038904,30]
[398372176,1765559267819,-500.0,0.00038904,30]
[398372178,1765559267879,-600.0,0.00038904,30]
[398372180,1765559267937,-500.0,0.00038904,30]
[398372183,1765559267992,-500.0,0.00038904,30]
[398372185,1765559268047,-500.0,0.00038904,30]
[398372187,1765559268103,-500.0,0.00038904,30]
[398372189,1765559268162,-500.0,0.00038904,30]
[398372192,1765559268219,-500.0,0.00038904,30]
[398372194,1765559268272,-519.58,0.00038904,30]
[398372196,1765559268326,-500.0,0.00038904,30]
[398372198,1765559268384,-500.0,0.00038904,30]
[398372200,1765559268442,-327.62124149,0.00038904,30]
[398372202,1765559268501,-500.0,0.00038904,30]
[398372204,1765559268559,-500.0,0.00038904,30]
[398372207,1765559268619,-500.0,0.00038904,30]
[398372209,1765559268677,-500.0,0.00038904,30]
[398372211,1765559268730,-500.0,0.00038904,30]
[398372213,1765559268783,-195.33533694,0.00038904,30]
[398372215,1765559268842,-500.0,0.00038904,30]
[398372217,1765559268895,-500.0,0.00038904,30]
[398372219,1765559268955,-662.58,0.00038904,30]
[398372222,1765559269019,-500.0,0.00038904,30]
[398372224,1765559269071,-541.03,0.00038904,30]
[398372226,1765559269123,-500.0,0.00038904,30]
[398372228,1765559269178,-500.0,0.00038904,30]
[398372230,1765559269233,-500.0,0.00038904,30]
[398372232,1765559269287,-500.61159503,0.00038904,30]
[398372234,1765559269343,-509.26935862,0.00038904,30]
[398372236,1765559269399,-500.0,0.00038904,30]
[398372239,1765559269454,-546.54528998,0.00038904,30]
[398372241,1765559269507,-500.0,0.00038904,30]
[398372242,1765559269565,-500.0,0.00038904,30]
[398372244,1765559269618,-500.0,0.00038904,30]
[398372246,1765559269669,-542.23,0.00038904,30]
[398372248,1765559269719,-500.0,0.00038904,30]
[398372250,1765559269770,-500.0,0.00038904,30]
[398372253,1765559269820,-500.0,0.00038904,30]
[398372255,1765559269871,-500.0,0.00038904,30]
[398372257,1765559269922,-500.0,0.00038904,30]
[398372259,1765559269972,-500.0,0.00038904,30]
[398372261,1765559270026,-624.71,0.00038904,30]
[398372263,1765559270079,-538.42482976,0.00038904,30]
[398372266,1765559270131,-500.0,0.00038904,30]
[398372268,1765559270184,-500.0,0.00038904,30]
[398372270,1765559270235,-500.0,0.00038904,30]
[398372272,1765559270283,-500.0,0.00038904,30]
[398372274,1765559270339,-500.0,0.00038904,30]
[398372276,1765559270402,-500.0,0.00038904,30]
[398372279,1765559270463,-500.0,0.00038904,30]
[398372281,1765559270518,-500.0,0.00038904,30]
[398372283,1765559270573,-500.0,0.00038904,30]
[398372285,1765559270628,-500.0,0.00038904,30]
[398372287,1765559270683,-500.0,0.00038904,30]
[398372289,1765559270737,-500.0,0.00038904,30]
[398372291,1765559270793,-500.0,0.00038904,30]
[398372294,1765559270852,-500.0,0.00038904,30]
[398372296,1765559270906,-500.0,0.00038904,30]
[398372298,1765559270964,-461.76282697,0.00038904,30]
[398372300,1765559271035,-638.0068176,0.00038904,30]
[398372302,1765559271094,-500.0,0.00038904,30]
[398372304,1765559271151,-500.0,0.00038904,30]
[398372307,1765559271207,-518.53051201,0.00038904,30]
[398372309,1765559271259,-500.0,0.00038904,30]
[398372311,1765559271309,-500.0,0.00038904,30]
[398372313,1765559271360,-431.53838146,0.00038904,30]
[398372315,1765559271415,-500.0,0.00038904,30]
[398372317,1765559271473,-508.04292114,0.00038904,30]
[398372319,1765559271534,-500.0,0.00038904,30]
[398372326,1765559271817,-500.0,0.00038904,30]
[398372329,1765559271877,-500.0,0.00038904,30]
[398372331,1765559271936,-500.0,0.00038904,30]
[398372333,1765559272002,-500.0,0.00038904,30]
[398372335,1765559272062,-500.0,0.00038904,30]
[398372338,1765559272121,-505.69,0.00038904,30]
[398372340,1765559272181,-500.0,0.00038904,30]
[398372342,1765559272244,-500.0,0.00038904,30]
[398372344,1765559272299,-500.0,0.00038904,30]
[398372346,1765559272356,-500.0,0.00038904,30]
[398372348,1765559272412,-500.0,0.00038904,30]
[398372351,1765559272469,-500.0,0.00038904,30]
[398372353,1765559272522,-359.16815673,0.00038904,30]
[398372355,1765559272575,-500.0,0.00038904,30]
[398372357,1765559272627,-500.0,0.00038904,30]
[398372359,1765559272684,-500.0,0.00038904,30]
[398372361,1765559272739,-500.0,0.00038904,30]
[398372364,1765559272793,-500.0,0.00038904,30]
[398372366,1765559272847,-500.0,0.00038904,30]
[398372368,1765559272900,-500.0,0.00038904,30]
[398372370,1765559272957,-500.0,0.00038904,30]
[398372372,1765559273012,-1153.52,0.00038904,30]
[398372374,1765559273069,-500.0,0.00038904,30]
[398372376,1765559273127,-500.0,0.00038904,30]
[398372379,1765559273191,-500.0,0.00038904,30]
[398372381,1765559273248,-854.82,0.00038904,30]
[398372383,1765559273302,-666.07,0.00038904,30]
[398372385,1765559273358,-500.0,0.00038904,30]
[398372387,1765559273413,-500.0,0.00038904,30]
[398372389,1765559273475,-500.0,0.00038904,30]
[398372391,1765559273539,-502.66,0.00038904,30]
[398372393,1765559273602,-500.0,0.00038904,30]
[398372395,1765559273662,-500.0,0.00038904,30]
[398372398,1765559273720,-500.0,0.00038904,30]
[398372400,1765559273775,-1981.87413775,0.00038904,30]
[398372402,1765559273828,-500.0,0.00038904,30]
[398372404,1765559273885,-500.0,0.00038904,30]
[398372406,1765559273941,-500.0,0.00038904,30]
[398372409,1765559273999,-500.0,0.00038904,30]
[398372411,1765559274060,-500.0,0.00038904,30]
[398372413,1765559274120,-500.0,0.00038904,30]
[398372415,1765559274181,-500.0,0.00038904,30]
[398372417,1765559274247,-500.0,0.00038904,30]
[398372418,1765559274314,-500.0,0.00038904,30]
[398372420,1765559274375,-500.0,0.00038904,30]
[398372422,1765559274433,-944.86,0.00038904,30]
[398372424,1765559274488,-599.5,0.00038904,30]
[398372426,1765559274545,-500.0,0.00038904,30]
[398372428,1765559274603,-500.0,0.00038904,30]
[398372430,1765559274664,-500.0,0.00038904,30]
[398372432,1765559274720,-500.0,0.00038904,30]
[398372435,1765559274773,-500.0,0.00038904,30]
[398372437,1765559274825,-500.0,0.00038904,30]
[398372439,1765559274882,-500.0,0.00038904,30]
[398372441,1765559274935,-651.78,0.00038904,30]
[398372443,1765559274989,-591.69011282,0.00038904,30]